[Event "VII Totalizator Sportowy 2022"]
[Site "Bydgoszcz"]
[Date "2022.07.04"]
[Round "10.6"]
[White "Malek, Jan"]
[Black "Kosakowski, Jakub"]
[Result "1-0"]
[ECO "B22"]
[WhiteElo "2316"]
[BlackElo "2435"]
[Annotator "TA"]
[PlyCount "49"]
[EventDate "2022.06.25"]
[EventType "swiss"]
[EventCountry "POL"]
[SourceTitle "playchess.com"]
[Source "ChessBase"]
[SourceQuality "1"]
[TimeControl "40/5400+30:1800+30"]

{[%evp 19,49,0,0,0,0,0,0,0,-7,-27,-13,-31,0,8,37,43,41,45,44,-4,-31,-16,15,0,0,0,0,0,472,498,518,383]} 1. e4 {[%emt 0:00:03][%cal Be2e4,Be4e5][%mdl 32]} c5 {[%emt 0:03:56]} 2. c3 {[%emt 0:00:08]} Nf6 {[%emt 0:02:23]} 3. e5 {[%emt 0:00:06]} Nd5 {[%emt 0:00:10]} 4. Nf3 {[%emt 0:00:04]} e6 {[%emt 0:00:35]} 5. d4 {[%emt 0:00:05]} cxd4 {[%emt 0:00:22]} 6. cxd4 {[%emt 0:00:00]} d6 {[%emt 0:00:34]} 7. Bc4 {[%emt 0:00:06]} Nc6 {[%emt 0:03:57]} 8. O-O {[%emt 0:00:06]} Be7 {[%emt 0:00:21]} 9. Qe2 {[%emt 0:00:05]} O-O {[%emt 0:01:39]} 10. Qe4 {[%emt 0:00:08] 10.Rd1 is the modern continuation.} Bd7 {[%emt 0:09:57]} 11. Bb3 {[%emt 0:00:35] B22: Sicilian: 2 c3.} Na5 {[%emt 0:19:31]} 12. Bc2 {[%emt 0:00:00][%csl Gc2][%cal Re4h7] [#]} g6 $146 {[%emt 0:00:14]} ({Predecessor:} 12... f5 13. exf6 Nxf6 14. Qe2 Nd5 15. Qe4 Nf6 16. Qe2 Nd5 17. Nc3 Nxc3 18. bxc3 Qe8 {1-0 (37) Malek,J (2230)-Karolczuk,I (2328) Sypniewo 2022}) 13. Bh6 {[%emt 0:00:06] The position is equal.} Re8 {[%emt 0:01:02]} 14. Qg4 {[%emt 0:00:05]} Nb4 {[%emt 0:08:01]} (14... Rc8 $5 {[%cal Rc8c2]} 15. Rc1 dxe5 16. Nxe5 Bf8 17. Bxf8 Rxf8 $11) 15. Na3 {[%emt 0:00:10]} Nxc2 {[%emt 0:01:27]} 16. Nxc2 {[%emt 0:00:01]} Bc6 {[%emt 0:05:57]} 17. Ng5 {[%emt 0:22:23] Strongly threatening Ne3.} dxe5 {[%emt 0:04:55]} 18. dxe5 {[%emt 0:00:21]} Nc4 {[%emt 0:02:23]} 19. Rad1 {[%emt 0:26:57]} (19. Nxf7 $14 {is more appropriate.} Kxf7 20. Qxc4 (20. Qf4+ Kg8 $11)) 19... Nxe5 $11 {[%emt 0:01:26]} 20. Qf4 {[%emt 0:00:10]} Qb8 {[%emt 0:00:49]} 21. Rfe1 $40 {[%emt 0:01:28][%mdl 128] Black needs to defend precisely.} f6 {[%emt 0:01:37]} (21... Bxg5 $2 22. Qxg5 f5 23. Qf6 $18) 22. Nxe6 {[%emt 0:00:27] Pair of Knights!} Nf7 {[%emt 0:00:55]} 23. Qh4 {[%emt 0:13:40] Bf4 is the strong threat.} f5 $2 {[%emt 0:03:30][%mdl 8192] [#]} (23... g5 $11 {and Black is okay.} 24. Qh3 Bd6) 24. Qd4 $1 $18 {[%emt 0:00:48][%csl Ge6,Gh6][%cal Rd4g7]} Ne5 {[%emt 0:03:08]} 25. Bf4 {[%emt 0:02:52] Weighted Error Value: White=0.10 (very precise) /Black=0.46} 1-0

[Event "VII Totalizator Sportowy 2022"]
[Site "Bydgoszcz"]
[Date "2022.07.04"]
[Round "10.7"]
[White "Golubka, Petro"]
[Black "Prokofiev, Valentyn"]
[Result "1/2-1/2"]
[ECO "A10"]
[WhiteElo "2380"]
[BlackElo "2362"]
[Annotator "TA"]
[PlyCount "35"]
[EventDate "2022.06.25"]
[EventType "swiss"]
[EventCountry "POL"]
[SourceTitle "playchess.com"]
[Source "ChessBase"]
[SourceQuality "1"]
[TimeControl "40/5400+30:1800+30"]

{[%evp 20,35,25,24,21,12,32,0,0,0,0,0,-7,0,-6,-14,0,-2]} 1. c4 {[%emt 0:02:52]} g6 {[%emt 0:00:06]} 2. d4 {[%emt 0:00:22]} Bg7 {[%emt 0:00:15]} 3. Nc3 {[%emt 0:00:06]} c5 {[%emt 0:00:04]} 4. e3 {[%emt 0:01:21]} Nf6 {[%emt 0:01:01]} 5. Nf3 {[%emt 0:00:16]} O-O {[%emt 0:00:22]} 6. h3 {[%emt 0:00:16]} cxd4 {[%emt 0:01:57]} 7. exd4 {[%emt 0:00:03]} d5 {[%emt 0:00:21]} 8. Bd3 {[%emt 0:00:37]} dxc4 {[%emt 0:03:51]} 9. Bxc4 {[%emt 0:00:01]} Nbd7 {[%emt 0:00:41]} 10. O-O {[%emt 0:00:59]} Nb6 {[%emt 0:00:33]} 11. Bb3 {[%emt 0:00:05]} Nbd5 {[%emt 0:07:34] D94: Grünfeld: 4 Nf3 Bg7 5 e3.} 12. Re1 {[%emt 0:06:10]} e6 {[%emt 0:08:31]} 13. Nxd5 {[%emt 0:07:40]} Nxd5 {[%emt 0:05:28] [#] The position is equal.} 14. Bg5 $146 {[%emt 0:00:11]} ({Predecessor:} 14. Bd2 Qd6 15. Qe2 b6 16. Qe4 Bb7 17. Rad1 Rac8 18. Ng5 h6 19. Nf3 {1-0 (46) Amelang,T (2061)-Heer,S (2096) Bayern 2011}) 14... Qd6 {[%emt 0:00:51]} 15. Qd2 {[%emt 0:02:07]} b6 {[%emt 0:02:33]} 16. Rac1 {[%emt 0:04:19]} Bb7 {[%emt 0:01:24]} 17. Ne5 {[%emt 0:04:10]} Rfc8 {[%emt 0:04:40] [#] And now ...f6 would win.} 18. Bh6 {[%emt 0:02:45] An even fight not without its subleties.  Weighted Error Value: White=0.06 (flawless) /Black=0.05 (flawless)} 1/2-1/2

[Event "VII Totalizator Sportowy 2022"]
[Site "Bydgoszcz"]
[Date "2022.07.04"]
[Round "10.8"]
[White "Licznerski, Lukasz"]
[Black "Chojnacki, Krzysztof"]
[Result "1-0"]
[ECO "C95"]
[WhiteElo "2439"]
[BlackElo "2371"]
[Annotator "TA"]
[PlyCount "81"]
[EventDate "2022.06.25"]
[EventType "swiss"]
[EventCountry "POL"]
[SourceTitle "playchess.com"]
[Source "ChessBase"]
[SourceQuality "1"]
[TimeControl "40/5400+30:1800+30"]

{[%evp 32,81,20,21,21,20,22,20,19,0,0,0,0,-4,10,10,8,0,73,84,170,193,194,191,491,115,121,103,170,169,300,280,300,300,411,408,424,424,416,415,614,620,1013,984,2575,2402,29986,29987,29986,29987,29986,29987]} 1. e4 {[%emt 0:02:56]} e5 {[%emt 0:00:07]} 2. Nf3 {[%emt 0:00:06]} Nc6 {[%emt 0:00:08]} 3. Bb5 {[%emt 0:00:08]} a6 {[%emt 0:00:06]} 4. Ba4 {[%emt 0:00:53]} Nf6 {[%emt 0:00:10]} 5. O-O {[%emt 0:00:03]} Be7 {[%emt 0:00:12]} 6. Re1 {[%emt 0:01:30]} b5 {[%emt 0:00:13]} 7. Bb3 {[%emt 0:00:01]} d6 {[%emt 0:00:13]} 8. c3 {[%emt 0:00:02]} O-O {[%emt 0:00:15]} 9. h3 {[%emt 0:00:02]} Nb8 {[%emt 0:00:47]} 10. d4 {[%emt 0:00:05]} Nbd7 {[%emt 0:00:12]} 11. Nbd2 {[%emt 0:00:16]} Bb7 {[%emt 0:00:23]} 12. Bc2 {[%emt 0:00:45]} Re8 {[%emt 0:00:34]} 13. Nf1 {[%emt 0:00:02]} Bf8 {[%emt 0:00:16]} 14. Ng3 {[%emt 0:00:02]} g6 {[%emt 0:00:16]} 15. a4 {[%emt 0:00:18]} c5 {[%emt 0:01:03]} 16. d5 {[%emt 0:00:48]} c4 {[%emt 0:00:28]} 17. Bg5 {[%emt 0:00:42]} Nc5 {[%emt 0:01:46] [#] C95: Closed Ruy Lopez: Breyer Variation with 10 d4.} 18. Qc1 $146 {[%emt 0:42:58]} ({Predecessor:} 18. Qd2 Be7 19. Bh6 Bf8 20. Bg5 Be7 21. Bh6 Bf8 22. axb5 axb5 23. Bxf8 Rxf8 24. Rxa8 Bxa8 25. Qh6 {0-1 (78) Volokitin,A (2687)-Stern,R (2510) Germany 2022}) 18... Be7 {[%emt 0:04:48]} 19. Be3 {[%emt 0:00:17]} Nfd7 {[%emt 0:03:51] The position is equal.} 20. h4 {[%emt 0:05:38]} h5 {[%emt 0:07:45]} (20... Bxh4 $2 21. Nxh4 Kh8 22. Qd2 $1 $18) 21. Ng5 {[%emt 0:00:28]} Qc7 {[%emt 0:11:04]} 22. Rf1 {[%emt 0:04:14]} Nxa4 {[%emt 0:11:04]} 23. Bxa4 {[%emt 0:00:57]} bxa4 {[%emt 0:00:03]} 24. f4 {[%emt 0:01:50][%cal Bf2f4,Bf4g5][%mdl 32]} Bxg5 {[%emt 0:07:12]} (24... exf4 $11 {remains equal.} 25. Rxf4 Bxg5 26. hxg5 Ne5) 25. fxg5 $16 {[%emt 0:01:24] Strongly threatening Qd1.} Nc5 {[%emt 0:01:20]} (25... Bc8 $16) 26. Bxc5 $18 {[%emt 0:00:38]} Qxc5+ {[%emt 0:00:21]} 27. Kh2 {[%emt 0:10:02][%cal Og3h5] Hoping for Nxh5!} Bc8 $2 {[%emt 0:03:51] [#]} (27... Kg7 28. Qd1 (28. Rxa4 a5 $16) 28... Re7) 28. Rxa4 $2 {[%emt 0:00:39]} (28. Nxh5 $1 $18 {[%mdl 512] is the precise move to win. And now Nf6+ would win.} Rd8 (28... Kf8 29. Nf6) 29. Nf6+ Kg7 30. h5) 28... Bd7 {[%emt 0:01:21]} 29. Ra2 {[%emt 0:01:04][%cal Og3h5]} a5 {[%emt 0:01:22]} (29... Bg4 $16) 30. Rf6 {[%emt 0:00:29][%cal Og3h5]} Rf8 {[%emt 0:02:55] [#]} (30... Bg4 {keeps fighting.} 31. Qe1 Re7) 31. Nxh5 $1 {[%emt 0:05:18][%mdl 512]} Bg4 {[%emt 0:12:29]} (31... gxh5 $2 32. g6 Bf5 33. g7 (33. gxf7+ Rxf7 34. Rxf5 Rxf5 $18) 33... Bxe4 34. Qh6 $18 (34. gxf8=R+ Kxf8 35. Qg5 Bxd5 $18)) 32. Ng3 {[%emt 0:02:24][%cal Bh5g3,Bg3f1,Bf1e3,Be3f5,Bf5g7][%mdl 32]} Kg7 {[%emt 0:02:30]} 33. Qe1 {[%emt 0:04:51]} Rab8 {[%emt 0:06:00]} 34. Nf1 {[%emt 0:00:54]} Bd7 {[%emt 0:02:20]} 35. Ne3 {[%emt 0:00:53]} a4 {[%emt 0:00:38]} (35... Rh8 $142 36. Qf2 Be8) 36. Qf2 {[%emt 0:01:46]} Rb3 {[%emt 0:02:04]} 37. h5 {[%emt 0:04:49] aiming for hxg6.} gxh5 {[%emt 0:03:57]} 38. Rh6 {[%emt 0:00:44] Intending Qf6+ and mate.} f6 {[%emt 0:02:05]} 39. Nf5+ {[%emt 0:01:30] White mates.} Kf7 {[%emt 0:01:16]} 40. Rxf6+ {[%emt 0:00:00]} Ke8 {[%emt 0:00:00]} 41. Ng7+ {[%emt 0:00:18] Weighted Error Value: White=0.19 (very precise) /Black=0.77} 1-0

[Event "VII Totalizator Sportowy 2022"]
[Site "Bydgoszcz"]
[Date "2022.07.04"]
[Round "10.9"]
[White "Hnydiuk, Aleksander"]
[Black "Fiedorek, Michal"]
[Result "1/2-1/2"]
[ECO "B67"]
[WhiteElo "2394"]
[BlackElo "2315"]
[Annotator "TA"]
[PlyCount "65"]
[EventDate "2022.06.25"]
[EventType "swiss"]
[EventCountry "POL"]
[SourceTitle "playchess.com"]
[Source "ChessBase"]
[SourceQuality "1"]
[TimeControl "40/5400+30:1800+30"]

{[%evp 18,65,30,33,32,25,27,25,16,18,20,26,30,20,25,32,40,0,0,0,0,0,10,0,0,0,0,0,12,0,12,0,33,-6,0,-16,-16,-10,-9,-10,-10,-10,0,0,0,0,0,0,0,0]} 1. e4 {[%emt 0:07:19]} c5 {[%emt 0:00:05]} 2. Nf3 {[%emt 0:00:09]} d6 {[%emt 0:00:09]} 3. d4 {[%emt 0:00:16]} cxd4 {[%emt 0:00:08]} 4. Nxd4 {[%emt 0:00:04]} Nf6 {[%emt 0:00:07]} 5. Nc3 {[%emt 0:00:04]} Nc6 {[%emt 0:00:05]} 6. Bg5 {[%emt 0:00:05]} e6 {[%emt 0:00:25]} 7. Qd2 {[%emt 0:00:05]} a6 {[%emt 0:00:06]} 8. O-O-O {[%emt 0:00:05]} Bd7 {[%emt 0:00:33][%cal Bc8d7,Bd7c6,Bc6d5][%mdl 32]} 9. Kb1 {[%emt 0:00:10]} Be7 {[%emt 0:01:53]} 10. f3 {[%emt 0:02:19]} Qc7 {[%emt 0:02:21] 10...Nxd4 is the modern continuation. B67: Sicilian: Richter-Rauzer: 7...a6 8 0-0-0 Bd7, lines without 9 f4 Be7.} 11. Nxc6 {[%emt 0:09:44]} Bxc6 {[%emt 0:00:18]} 12. Bd3 {[%emt 0:02:29]} h6 {[%emt 0:17:44] White has an edge.} 13. Be3 {[%emt 0:31:00] [#]} d5 $146 {[%emt 0:05:07]} ({Predecessor:} 13... b5 14. Ne2 e5 15. Ng3 Bd7 16. f4 Rd8 17. h3 Qc6 18. Qf2 O-O 19. fxe5 dxe5 {½-½ (44) Yan,R (2281)-Bitoon,R (2437) Las Vegas 2022}) 14. exd5 {[%emt 0:13:13]} (14. Bf4 {looks sharper.} Qb6 15. exd5 Bxd5 16. Be5) 14... Nxd5 {[%emt 0:00:38]} 15. Nxd5 {[%emt 0:00:06]} Bxd5 {[%emt 0:00:07]} 16. c4 {[%emt 0:04:38]} Bc6 {[%emt 0:00:47]} 17. Bc2 {[%emt 0:01:33]} Rd8 {[%emt 0:02:18]} 18. Qc3 {[%emt 0:01:10]} Rxd1+ {[%emt 0:17:58]} 19. Rxd1 {[%emt 0:00:16]} Bf6 {[%emt 0:01:09]} 20. Bd4 {[%emt 0:04:27]} Bxd4 {[%emt 0:02:04]} 21. Qxd4 {[%emt 0:00:06]} O-O {[%emt 0:00:36]} 22. Qd3 {[%emt 0:15:28][%csl Gc2][%cal Rd3h7] [#]} g6 {[%emt 0:05:42]} 23. g3 {[%emt 0:00:21]} e5 {[%emt 0:04:02]} 24. Qe3 {[%emt 0:01:06]} Kg7 {[%emt 0:03:43]} 25. f4 {[%emt 0:01:05]} Re8 {[%emt 0:07:56] [#] And now ...exf4 would win. The position is equal.} 26. Re1 {[%emt 0:02:12][%cal Rf4e5]} exf4 {[%emt 0:03:14]} 27. Qd4+ {[%emt 0:00:14]} f6 {[%emt 0:09:02]} 28. Rxe8 {[%emt 0:00:05]} Bxe8 {[%emt 0:00:04]} 29. gxf4 {[%emt 0:00:07]} Bf7 {[%emt 0:00:59]} 30. b3 {[%emt 0:01:43]} g5 {[%emt 0:00:29]} 31. fxg5 {[%emt 0:01:04]} hxg5 {[%emt 0:00:23]} 32. h4 {[%emt 0:00:21]} gxh4 {[%emt 0:04:13] ...Qg3 is the strong threat.} 33. Qxh4 {[%emt 0:00:07] Weighted Error Value: White=0.07 (flawless) /Black=0.04 (flawless)} 1/2-1/2

[Event "VII Totalizator Sportowy 2022"]
[Site "Bydgoszcz"]
[Date "2022.07.04"]
[Round "10.10"]
[White "Sernecki, Franciszek"]
[Black "Sieciechowicz, Marcin"]
[Result "0-1"]
[ECO "A73"]
[WhiteElo "2272"]
[BlackElo "2388"]
[Annotator "TA"]
[PlyCount "110"]
[EventDate "2022.06.25"]
[EventType "swiss"]
[EventCountry "POL"]
[SourceTitle "playchess.com"]
[Source "ChessBase"]
[SourceQuality "1"]
[TimeControl "40/5400+30:1800+30"]

{[%evp 17,110,36,45,0,18,0,-19,-133,-141,-129,-119,-121,-131,-118,-108,-111,-103,-93,-95,-93,-98,-98,-102,-97,-86,-82,-85,-83,-75,-76,-74,-86,-84,-78,-42,-54,-49,-56,-67,-100,-103,-104,-91,-122,-125,-110,-110,-156,-78,-153,-156,-164,-147,-162,-155,-157,-127,-243,-242,-228,-216,-208,-188,-358,-352,-348,-340,-376,-368,-369,-346,-312,-255,-929,-859,-852,-712,-29957,-29958,-29962,-2018,-29970,-29972,-29968,-29972,-29972,-29973,-29974,-29975,-29974,-29976,-29973,-29971,-5451,-494]} 1. d4 {[%emt 0:00:45]} Nf6 {[%emt 0:00:04]} 2. c4 {[%emt 0:00:05]} c5 {[%emt 0:00:06]} 3. d5 {[%emt 0:00:05]} e6 {[%emt 0:00:06]} 4. Nc3 {[%emt 0:00:38]} exd5 {[%emt 0:00:04]} 5. cxd5 {[%emt 0:00:07]} d6 {[%emt 0:00:03]} 6. e4 {[%emt 0:00:20]} g6 {[%emt 0:00:07]} 7. Nf3 {[%emt 0:00:05]} Bg7 {[%emt 0:00:04]} 8. Be2 {[%emt 0:00:16]} O-O {[%emt 0:00:08]} 9. O-O {[%emt 0:00:14] 9.Be3 is more fashionable.} Bg4 {[%emt 0:00:06]} 10. Qb3 {[%emt 0:01:33] [#] A73: Modern Benoni: Classical: Unusual Black 9th moves.} Nbd7 $146 {[%emt 0:02:46]} (10... Re8 $5 {[%cal Rf6e4]}) ({Predecessor:} 10... Re8 11. e5 dxe5 12. Qxb7 Nbd7 13. h3 Bxf3 14. Bxf3 e4 15. Be2 Ne5 16. Bg5 Nd3 17. Bxd3 {½-½ (17) Sernecki,F (2197)-Bartel,M (2262) Poronin 2021}) 11. Bf4 {[%emt 0:07:58]} Re8 {[%emt 0:02:14]} 12. Bd3 {[%emt 0:16:31]} (12. Qxb7 Nxe4 13. h3 Rb8 $19) (12. Qc2 $11 {remains equal.}) 12... Bxf3 $17 {[%emt 0:01:26]} 13. gxf3 {[%emt 0:00:08]} Nh5 {[%emt 0:02:54]} 14. Bg3 {[%emt 0:01:55]} Ne5 {[%emt 0:02:43]} 15. Be2 {[%emt 0:01:38]} Qf6 {[%emt 0:00:29] Prevents f4.} 16. Nb5 {[%emt 0:04:50]} Rad8 {[%emt 0:08:15] Strongly threatening ...a6.} 17. Nxa7 {[%emt 0:10:07]} Nf4 $1 {[%emt 0:05:18]} 18. Bxf4 {[%emt 0:06:37]} Qxf4 {[%emt 0:00:12]} 19. Qe3 {[%emt 0:00:16]} Qh4 {[%emt 0:02:33] Hoping for ...Bh6.} 20. f4 {[%emt 0:00:27]} Bh6 {[%emt 0:05:15][%cal Bg7h6,Bh6f4,Bf4e5][%mdl 32]} ({Much weaker is} 20... Ng4 $6 21. Qg3 Qxh2+ 22. Qxh2 $15) 21. Qg3 {[%emt 0:00:22]} Qxf4 {[%emt 0:00:03]} 22. Qxf4 {[%emt 0:00:12]} Bxf4 {[%emt 0:00:02]} 23. Nb5 {[%emt 0:05:19]} Nd7 {[%emt 0:01:31][%cal Be5d7,Bd7f6,Bf6h5,Bh5f4][%mdl 32]} 24. f3 {[%emt 0:03:53]} Nf6 {[%emt 0:05:41]} 25. Bd3 {[%emt 0:04:49]} Nh5 {[%emt 0:02:55]} 26. a4 {[%emt 0:05:08]} Be5 {[%emt 0:05:08]} 27. Ra2 {[%emt 0:00:45]} Nf4 {[%emt 0:00:51]} 28. Bc4 {[%emt 0:01:02]} Re7 {[%emt 0:00:33] Black is more active.} 29. b3 {[%emt 0:02:42]} f5 {[%emt 0:02:45]} 30. a5 {[%emt 0:03:58]} fxe4 {[%emt 0:01:18]} 31. fxe4 {[%emt 0:00:34]} Ra8 {[%emt 0:02:45]} 32. Kh1 {[%emt 0:01:31] [#]} (32. Rb1 $142) 32... Kg7 {[%emt 0:01:09]} (32... g5 $142 $1 33. Rff2 h5) 33. Rb1 {[%emt 0:04:16]} (33. Ra4 $142) 33... g5 {[%emt 0:01:50][%cal Bg6g5,Bg5g4][%mdl 32]} 34. Bf1 {[%emt 0:01:42]} g4 {[%emt 0:04:01]} 35. b4 {[%emt 0:02:29]} cxb4 {[%emt 0:01:46]} 36. Rxb4 {[%emt 0:00:47]} Rf7 {[%emt 0:04:06]} 37. Rc4 {[%emt 0:01:35] [#]} (37. Nd4 $17 {keeps fighting.}) 37... Nh3 $1 $19 {[%emt 0:06:17]} 38. Rc7 {[%emt 0:04:02]} Raf8 $40 {[%emt 0:02:26][%mdl 128] Black is out for blood.} 39. Rxf7+ {[%emt 0:09:28]} Rxf7 {[%emt 0:00:06]} 40. Bxh3 {[%emt 0:00:00]} (40. Bg2 {was forced.}) 40... gxh3 {[%emt 0:00:00][%cal Rf7f1][%mdl 4096] Endgame KRB-KRN} 41. Kg1 {[%emt 0:01:14] Against Rf1+} Rf3 {[%emt 0:12:34]} 42. a6 {[%emt 0:02:20]} bxa6 {[%emt 0:03:13]} 43. Rxa6 {[%emt 0:00:21]} Kf6 {[%emt 0:03:21] And now ...Kg5 would win.} 44. Ra2 {[%emt 0:06:16]} Rb3 {[%emt 0:02:02]} 45. Nc7 {[%emt 0:02:47]} (45. Na3) 45... Rb1+ {[%emt 0:03:30]} 46. Kf2 {[%emt 0:00:02]} Bxh2 {[%emt 0:00:50] ( -> ...Bg1+)} 47. Ne8+ {[%emt 0:03:13]} Kf7 {[%emt 0:02:49]} 48. Ra3 {[%emt 0:00:20]} Rb2+ {[%emt 0:01:08]} (48... Kxe8 $142 49. Rxh3 Rb2+ 50. Ke1 Kf7 51. Rxh7+ Kg6 52. Re7 Kg5 53. Kd1 Bf4 54. Ra7 Kg4 55. Ra3 Be5 56. Kc1 Kf4 57. Rh3 Rf2 58. Rh7 Kxe4 59. Kd1 Rh2 60. Rf7 Kxd5 61. Kc1 Ke4 62. Rf1 Ra2 63. Rf7 Bf4+ 64. Kb1 Rf2 65. Rf8 d5 66. Rh8 d4 67. Rh5 d3 68. Ra5 Kd4 69. Ra6 Kc4 70. Rc6+ Kb5 71. Rc3 Rf1+ 72. Kb2 Be5 73. Kb3 Rb1+ 74. Ka2 d2 75. Rd3 Kc4 76. Kxb1 Kxd3 77. Ka2 Kc4 78. Kb1 d1=Q+ 79. Ka2 Qb3#) 49. Kf1 {[%emt 0:00:13]} Kxe8 {[%emt 0:02:05]} 50. Rxh3 {[%emt 0:00:03] KRB-KR} Kf7 {[%emt 0:00:55]} 51. Rxh7+ {[%emt 0:00:18]} Kg6 {[%emt 0:00:12]} 52. Re7 {[%emt 0:00:20]} Be5 {[%emt 0:00:15]} 53. Re8 {[%emt 0:00:16]} Kg5 {[%emt 0:00:21]} 54. Rf8 {[%emt 0:00:08]} Kg4 {[%emt 0:00:08]} 55. Rf7 {[%emt 0:00:09]} Rb4 {[%emt 0:00:10] Weighted Error Value: White=0.58/Black=0.22 (precise)} (55... Bf4 $142 56. Ke1 Kf3) 0-1